bitfinex-derivatives/quotes_SOLF0:USTF0_20250819
["timestamp","ask_amount","ask_price","bid_price","bid_amount"]
[1755596068079,3.04,182.09,182.02,2.74]
[1755596068984,3.61672821,182.12,182.02,4.47691957]
[1755596069190,4.20858202,182.11,182.03,2.74]
[1755596069494,3.04,182.13,182.04,2.74]
[1755596069784,4.20815322,182.12,182.04,2.74]
[1755596069987,3.04,182.13,182.04,2.74]
[1755596070189,145.06,182.16,182.06,7.21691957]
[1755596070490,4.20744331,182.15,182.07,2.74]
[1755596070684,4.20744331,182.14,182.07,2.74]
[1755596070989,145.06,182.16,182.07,2.74]
[1755596071178,4.20774492,182.15,182.07,2.74]
[1755596071382,4.20774492,182.14,182.07,2.74]
[1755596071683,145.06,182.16,182.07,2.74]
[1755596071994,4.20804693,182.15,182.07,2.74]
[1755596072189,145.06,182.16,182.07,7.21691957]
[1755596072391,4.20799121,182.15,182.07,7.21691957]
[1755596072577,145.06,182.16,182.07,7.21691957]
[1755596073094,7.2482563,182.15,182.07,2.74]
[1755596073287,4.2082563,182.14,182.07,2.74]
[1755596073486,4.20871616,182.13,182.07,2.74]
[1755596073686,3.04,182.15,182.07,2.74]
[1755596073893,4.2085665,182.14,182.07,2.74]
[1755596074093,3.04,182.15,182.07,2.74]
[1755596074294,4.2085665,182.14,182.07,2.74]
[1755596074481,4.2085665,182.13,182.05,4.47691957]
[1755596074686,148.1,182.16,182.06,7.21691957]
[1755596074890,4.20863905,182.15,182.07,2.74]
[1755596075088,4.20863905,182.14,182.07,2.74]
[1755596075285,148.1,182.16,182.08,2.74]
[1755596075486,4.20870929,182.15,182.09,2.74]
[1755596075685,147.68,182.2,182.09,2.74]
[1755596075890,6.80419163,182.19,182.09,2.74]
[1755596076193,3.04,182.17,182.09,2.74]
[1755596076392,4.20859345,182.16,182.09,2.74]
[1755596077595,3.04,182.15,182.07,4.47691957]
[1755596077792,4.20859345,182.14,182.07,4.47691957]
[1755596078786,4.20859345,182.14,182.08,2.74]
[1755596078995,3.04,182.15,182.08,7.21691957]
[1755596079988,4.21008943,182.14,182.08,4.47691957]
[1755596080191,4.21008943,182.13,182.06,7.21691957]
[1755596080395,3.04,182.15,182.06,7.21691957]
[1755596080589,4.21057932,182.14,182.06,7.21691957]
[1755596080790,3.04,182.15,182.08,2.74]
[1755596080992,4.25753635,182.14,182.08,2.74]
[1755596081196,3.04,182.15,182.08,2.74]
[1755596081492,3.04,182.15,182.08,7.21691957]
[1755596081881,3.04,182.18,182.09,2.74]
[1755596082082,6.85466238,182.17,182.09,2.74]
[1755596082286,4.25784804,182.16,182.09,2.74]
[1755596082483,7.29784804,182.15,182.07,4.47691957]
[1755596082683,3.04,182.13,182.07,4.47691957]
[1755596082889,4.25862221,182.12,182.06,2.74]
[1755596083088,4.25910971,182.11,182.03,4.47691957]
[1755596083287,7.29910971,182.1,182.03,4.47691957]
[1755596083600,3.04,182.15,182.05,7.21691957]
[1755596083894,4.25917787,182.14,182.07,4.47691957]
[1755596084092,3.04,182.15,182.07,7.21691957]
[1755596084397,3.04,182.13,182.05,4.47691957]
[1755596084589,4.2585279,182.12,182.05,4.47691957]
[1755596084785,3.04,182.11,182.05,4.47691957]
[1755596084993,4.2585279,182.1,182.03,4.47691957]
[1755596085296,3.04,182.12,182.04,2.74]
[1755596085492,4.25992556,182.11,182.04,2.74]
[1755596085700,4.25992556,182.1,182.04,2.74]
[1755596085890,3.04,182.08,182.03,4.47691957]
[1755596086096,3.04,182.12,182.02,4.47691957]
[1755596086286,6.85825732,182.11,182.02,4.47691957]
[1755596086491,7.30018723,182.1,182.02,4.47691957]
[1755596086691,4.26018723,182.09,182.02,4.47691957]
[1755596086898,7.29976961,182.08,182.0,4.47691957]
[1755596087196,3.04,182.08,182.01,4.47691957]
[1755596088305,4.26037838,182.07,182.0,4.47691957]
[1755596088493,3.04,182.08,182.0,4.47691957]
[1755596088803,3.04,182.06,182.0,4.47691957]
[1755596089096,3.04,182.06,181.99,4.47691957]
[1755596089599,3.04,182.06,181.96,2.74]
[1755596089600,3.04,182.06,181.98,4.47691957]
[1755596089899,4.25901431,182.05,181.98,4.47691957]
[1755596090101,3.04,182.06,181.98,4.47691957]
[1755596090294,4.25917755,182.05,181.98,4.47691957]
[1755596090499,3.04,182.06,181.98,4.47691957]
[1755596091098,3.04,182.06,181.99,2.74]
[1755596091888,3.04,182.06,181.96,4.47691957]
[1755596092093,3.04,182.06,181.95,7.21691957]
[1755596092094,3.04,182.04,181.95,7.21691957]
[1755596092501,3.04,182.04,181.94,7.21691957]
[1755596092891,2.91,182.02,181.94,2.74]
[1755596093096,2.91,182.02,181.92,2.74]
[1755596093497,2.91,182.02,181.92,8.2346]
[1755596093701,6.52672821,182.06,181.92,7.21691957]
[1755596093989,4.31018792,182.05,181.95,5.4937]
[1755596094193,6.52672821,182.06,181.96,2.74]
[1755596094801,2.91,182.04,181.96,2.74]
[1755596099700,369.08,182.09,181.96,2.74]
[1755596099701,3.61672821,182.08,181.96,2.74]
[1755596099999,6.52672821,182.08,181.96,8.2334]
[1755596100206,6.52672821,182.08,181.96,2.74]
[1755596100411,2.91,182.07,181.96,2.74]
[1755596100600,2.91,182.04,181.96,2.74]
[1755596105507,7.21013667,182.03,181.92,2.74]
[1755596105707,2.91,182.02,181.92,2.74]
[1755596105907,3.61672821,182.01,181.92,2.74]
[1755596106108,2.91,182.0,181.92,2.74]
[1755596108314,2.91,182.0,181.88,2.74]
[1755596108507,2.91,181.97,181.88,2.74]
[1755596109015,2.91,181.97,181.88,8.2357]
[1755596109310,2.91,181.97,181.88,2.74]
[1755596110215,2.91,181.97,181.88,8.2357]
[1755596110403,3.61672821,182.01,181.89,2.74]
[1755596110601,2.91,182.01,181.89,2.74]
[1755596111312,2.91,182.01,181.89,8.2352]
[1755596111714,2.91,182.01,181.89,2.74]
[1755596112415,2.91,181.98,181.89,2.74]
[1755596115419,2.91,181.98,181.9,5.4952]
[1755596115619,2.91,181.98,181.91,2.75]
[1755596116620,2.91,182.02,181.91,6.36672821]
[1755596116812,2.91,182.02,181.93,2.75]
[1755596117715,2.91,182.02,181.85,4.47691957]
[1755596118018,142.7,182.07,181.83,68.97198353]
[1755596118019,2.91,181.99,181.89,2.75]
[1755596118418,2.91,181.99,181.89,8.2454]
[1755596118622,2.91,181.99,181.9,2.75]
[1755596118822,2.91,181.99,181.9,8.2451]
[1755596119124,2.91,181.99,181.87,2.75]
[1755596119625,2.91,181.99,181.88,5.4958]
[1755596119924,2.91,181.99,181.89,2.75]
[1755596120126,2.91,181.99,181.89,8.2452]
[1755596120325,2.91,181.99,181.9,2.75]
[1755596121027,2.91,181.99,181.89,2.75]
[1755596123830,2.91,181.99,181.9,2.73]
[1755596125533,2.91,181.99,181.91,2.73]
[1755596125732,3.61672821,182.02,181.91,2.73]
[1755596125927,3.0,182.03,181.93,5.4941]
[1755596126127,3.0,182.03,181.94,2.73]
[1755596127328,3.0,182.07,181.97,5.4929]
[1755596127524,3.0,182.07,181.96,2.73]
[1755596127732,4.31597748,182.06,181.96,2.73]
[1755596127928,3.0,182.07,181.96,2.73]
[1755596128338,4.31717538,182.06,181.96,2.73]
[1755596128536,3.0,182.07,181.98,5.4926]
[1755596128738,4.31717538,182.06,181.98,5.4926]
[1755596128931,3.0,182.07,181.96,2.73]
[1755596129132,4.31717538,182.06,181.96,8.2232]
[1755596129329,3.0,182.07,181.96,8.2232]
[1755596129535,3.0,182.07,181.99,2.73]
[1755596129536,4.31983785,182.06,181.99,2.73]
[1755596129835,3.0,182.07,181.99,2.73]
[1755596130037,4.31978066,182.06,181.99,2.73]
[1755596130340,3.0,182.07,181.99,2.73]
[1755596130537,4.32113599,182.06,181.99,2.73]
[1755596130737,3.0,182.07,181.99,2.73]
[1755596130938,4.32113599,182.06,181.99,2.73]
[1755596131239,3.0,182.07,181.99,2.73]
[1755596131437,4.32205568,182.06,181.99,2.73]
[1755596131637,3.0,182.07,181.99,2.73]
[1755596131839,4.32205498,182.06,181.99,2.73]
[1755596132037,511.76,182.09,182.0,2.73]
[1755596132337,4.32172392,182.08,182.0,2.73]
[1755596132539,511.76,182.09,182.0,6.34672821]
[1755596132735,4.32171041,182.08,182.0,11.83882821]
[1755596132936,142.68,182.09,182.0,6.34672821]
[1755596133138,7.32172822,182.08,182.0,6.34672821]
[1755596133345,3.0,182.08,182.0,2.73]
[1755596136840,4.32109832,182.07,181.97,6.34672821]
[1755596137040,3.0,182.06,181.97,2.73]
[1755596137241,4.32127061,182.05,181.97,2.73]
[1755596137445,3.0,182.04,181.97,2.73]
[1755596137633,3.0,182.04,181.93,116.46659152]
[1755596138036,3.0,182.04,181.94,8.2239]
[1755596138341,3.0,182.04,181.95,2.73]
[1755596142841,3.0,182.02,181.95,2.73]
[1755596143045,4.32255834,182.01,181.93,110.11986331]
[1755596143347,3.0,182.04,181.95,3.61672821]
[1755596143647,3.0,182.04,181.96,2.73]
[1755596145549,3.0,182.02,181.96,2.73]
[1755596145847,3.0,182.02,181.93,110.11986331]
[1755596146050,3.0,182.02,181.94,2.73]
[1755596148452,3.0,182.02,181.92,3.61672821]
[1755596148755,3.0,182.02,181.91,2.73]
[1755596148955,3.0,182.0,181.91,2.73]
[1755596149349,4.32347501,181.99,181.91,2.73]
[1755596149648,3.0,181.98,181.91,2.73]
[1755596150546,3.0,182.01,181.91,2.73]
[1755596150749,4.32327932,182.0,181.93,2.73]
[1755596150947,3.0,182.01,181.93,2.73]
[1755596151151,3.0,182.01,181.93,8.2243]
[1755596151349,3.0,182.01,181.93,2.73]
[1755596151754,3.0,182.01,181.94,5.494]
[1755596152053,3.0,182.01,181.95,2.73]
[1755596153251,3.0,182.01,181.92,3.61672821]
[1755596154650,3.0,182.01,181.93,2.74]
[1755596155051,3.0,182.01,181.93,8.2343]
[1755596155250,3.0,182.01,181.94,2.74]
[1755596155955,3.0,182.01,181.92,3.61672821]
[1755596157351,3.0,182.01,181.93,2.74]
[1755596160751,3.0,182.01,181.94,5.4939]
[1755596161350,3.0,182.01,181.93,8.2343]
[1755596162453,3.0,182.01,181.95,2.74]
[1755596162659,3.0,182.05,181.95,2.74]
[1755596162961,4.323369,182.04,181.95,2.74]
[1755596163259,7.323369,182.03,181.95,2.74]
[1755596163456,3.0,182.03,181.95,2.74]
[1755596164959,3.0,182.03,181.95,8.2337]
[1755596165160,3.0,182.03,181.95,2.74]
[1755596168969,4.32674296,182.02,181.95,2.74]
[1755596169169,3.0,182.03,181.95,2.74]
[1755596169367,3.0,182.01,181.95,2.74]
[1755596169669,3.0,182.01,181.92,10.88258699]
[1755596169869,3.0,182.01,181.92,7.26585878]
[1755596173657,3.0,181.99,181.92,2.74]
[1755596173857,3.0,181.99,181.9,4.52585878]
[1755596174565,3.61672821,182.01,181.89,2.74]
[1755596174566,3.0,181.97,181.89,7.26585878]
[1755596175268,3.0,181.97,181.9,2.74]
[1755596176271,6.61672821,182.01,181.9,8.2352]
[1755596176465,3.0,181.99,181.9,8.2352]
[1755596176669,4.38378949,181.98,181.9,8.2352]
[1755596176866,3.0,181.99,181.9,8.2352]
[1755596177062,3.0,181.97,181.9,2.74]
[1755596177265,3.61672821,182.03,181.91,2.74]
[1755596177461,3.0,182.01,181.91,2.74]
[1755596177662,3.0,181.99,181.91,2.74]
[1755596177869,4.3838672,181.98,181.91,2.74]
[1755596178071,4.3838672,181.98,181.91,8.2349]
[1755596178370,4.3838672,181.98,181.91,2.74]
[1755596178973,3.0,182.02,181.92,2.74]
[1755596179179,4.38482792,182.01,181.92,2.74]
[1755596179481,3.0,181.99,181.92,2.74]
[1755596179685,4.38482792,181.98,181.92,2.74]
[1755596179881,3.0,181.99,181.92,2.74]
[1755596180680,4.3872447,181.98,181.92,2.74]
[1755596180882,3.0,181.99,181.92,2.74]
[1755596181081,3.0,181.99,181.92,7.26585878]
[1755596181279,4.38869166,181.98,181.92,7.26585878]
[1755596181480,3.0,181.99,181.92,7.26585878]
[1755596181676,4.38154129,181.98,181.92,7.26585878]
[1755596181875,3.0,181.99,181.92,7.26585878]
[1755596182082,4.38145871,181.98,181.92,7.26585878]
[1755596182279,3.0,181.99,181.92,2.74]
[1755596182581,4.38191041,181.98,181.92,2.74]
[1755596182782,2.86,181.96,181.92,2.74]
[1755596182980,2.86,181.95,181.92,2.74]
[1755596183176,3.61672821,182.0,181.9,7.26585878]
[1755596183378,2.86,181.94,181.9,7.26585878]
[1755596183780,2.86,181.94,181.9,4.52585878]
[1755596183983,2.86,181.97,181.91,2.74]
[1755596184289,2.86,181.99,181.91,2.74]
[1755596184486,2.86,181.97,181.91,2.74]
[1755596184681,2.86,181.97,181.9,4.52585878]
[1755596185687,2.86,182.0,181.91,2.74]
[1755596185884,4.38179349,181.99,181.91,2.74]
[1755596186085,4.38179349,181.98,181.91,2.74]
[1755596186279,4.38179349,181.97,181.91,2.74]
[1755596186474,2.86,182.0,181.91,2.74]
[1755596186475,2.86,182.0,181.91,7.26585878]
[1755596186777,4.38157523,181.99,181.91,7.26585878]
[1755596187090,4.38157523,181.98,181.92,2.74]
[1755596187278,4.38157523,181.97,181.91,7.26585878]
[1755596187479,2.86,181.97,181.91,7.26585878]
[1755596187680,2.86,182.0,181.91,7.26585878]
[1755596187884,4.38156281,181.99,181.91,4.52585878]
[1755596188086,4.38156281,181.98,181.92,2.74]
[1755596188285,4.38156281,181.97,181.93,2.74]
[1755596188489,2.86,182.0,181.94,2.74]
[1755596188791,2.86,182.0,181.95,2.74]
[1755596189388,2.86,182.03,181.95,2.74]
[1755596189687,4.38103088,182.02,181.95,2.74]
[1755596189888,4.38103088,182.01,181.95,2.74]
[1755596190088,2.86,181.99,181.95,2.74]
[1755596193084,3.61672821,182.04,181.95,2.74]
[1755596193285,2.86,181.98,181.95,2.74]
[1755596193487,2.86,181.98,181.94,4.52585878]
[1755596193685,2.86,181.98,181.94,2.74]
[1755596194088,3.61672821,182.04,181.94,2.74]
[1755596194287,2.86,182.02,181.92,4.52585878]
[1755596194491,2.86,182.0,181.92,4.52585878]
[1755596194691,4.38170673,181.99,181.92,4.52585878]
[1755596195087,4.38170673,181.99,181.92,7.26585878]
[1755596195690,2.86,181.98,181.92,7.26585878]
[1755596197692,2.86,182.01,181.93,2.74]
[1755596197984,4.38227685,182.0,181.93,2.74]
[1755596198187,4.38227685,181.99,181.93,2.74]
[1755596198391,2.86,182.01,181.93,7.26585878]
[1755596198793,4.38239272,182.0,181.93,7.26585878]
[1755596199094,4.38239272,181.99,181.93,7.26585878]
[1755596199286,2.86,182.01,181.93,7.26585878]
[1755596199486,4.38242087,182.0,181.93,7.26585878]
[1755596199694,2.86,182.01,181.93,7.26585878]
[1755596199897,4.38209065,182.0,181.93,7.26585878]
[1755596200086,2.86,182.01,181.93,7.26585878]
[1755596200282,4.38208332,182.0,181.93,7.26585878]
[1755596200485,2.86,182.01,181.93,7.26585878]
[1755596200694,4.38208332,182.0,181.94,4.52585878]
[1755596200885,2.86,182.01,181.94,4.52585878]
[1755596201085,4.38191816,182.0,181.94,4.52585878]
[1755596201285,2.86,182.01,181.94,4.52585878]
[1755596201486,4.38184302,182.0,181.95,2.74]
[1755596201688,2.86,182.04,181.96,2.74]
[1755596201888,7.00682574,182.03,181.96,2.74]
[1755596202086,4.3817901,182.02,181.96,2.74]
[1755596202294,7.2417901,182.01,181.97,2.74]
[1755596202492,4.3817901,182.0,181.94,4.52585878]
[1755596202693,2.86,182.04,181.96,2.74]
[1755596202888,7.00670646,182.03,181.96,2.74]
[1755596203088,2.86,182.04,181.96,2.74]
[1755596203089,4.38171551,182.02,181.96,2.74]
[1755596203290,7.24171551,182.01,181.97,2.74]
[1755596203587,4.38171551,182.0,181.97,2.74]
[1755596203787,2.86,182.01,181.97,2.74]
[1755596203988,2.86,182.04,181.97,7.26585878]
[1755596204194,4.38106433,182.03,181.97,7.26585878]
[1755596204388,2.86,182.04,181.97,7.26585878]
[1755596204589,4.38018476,182.03,181.97,7.26585878]
[1755596204787,2.86,182.04,181.97,7.26585878]
[1755596204994,4.38018474,182.03,181.97,2.74]
[1755596205199,2.86,182.03,181.97,2.74]
[1755596205393,4.37977636,182.02,181.96,4.52585878]
[1755596205593,2.86,182.03,181.96,4.52585878]
[1755596205794,4.37983301,182.02,181.95,7.26585878]
[1755596205995,2.86,182.03,181.95,7.26585878]
[1755596206187,4.38016315,182.02,181.95,7.26585878]
[1755596206388,2.86,182.03,181.95,7.26585878]
[1755596206698,4.38008392,182.02,181.95,2.74]
[1755596206989,142.2,182.06,181.94,4.52585878]
[1755596206990,4.3799103,182.01,181.94,4.52585878]
[1755596207197,7.24030619,182.0,181.93,7.26585878]
[1755596207394,2.86,182.0,181.93,7.26585878]
[1755596207789,2.86,182.03,181.95,2.74]
[1755596207997,4.38012609,182.02,181.95,2.74]
[1755596208193,4.38012609,182.01,181.95,2.74]
[1755596208395,2.86,182.03,181.95,2.74]
[1755596208599,2.86,182.01,181.94,4.52585878]
[1755596210097,2.86,182.01,181.92,2.74]
[1755596210098,4.38032778,182.0,181.93,4.52585878]
[1755596210392,2.86,182.01,181.93,4.52585878]
[1755596210589,4.38065821,182.0,181.93,4.52585878]
[1755596210794,2.86,182.01,181.93,4.52585878]
[1755596210996,4.38065821,182.0,181.93,4.52585878]
[1755596211198,2.86,182.01,181.93,4.52585878]
[1755596211402,2.86,181.99,181.93,4.52585878]
[1755596211694,2.86,181.99,181.92,7.26585878]
[1755596212193,4.33328425,181.98,181.9,4.52585878]
[1755596212399,7.43328425,181.97,181.89,7.28335459]
[1755596212595,4.33328425,181.96,181.89,7.28335459]
[1755596213790,3.1,181.95,181.89,7.28335459]
[1755596215301,3.1,181.95,181.89,2.74]
[1755596216499,3.1,181.95,181.89,7.28335459]
[1755596219502,3.1,181.95,181.89,2.74]
[1755596219698,3.1,181.95,181.89,7.28335459]
[1755596220497,3.1,181.95,181.88,4.54335459]
[1755596221300,4.33152771,181.94,181.87,4.54335459]
[1755596221499,3.61672821,181.98,181.86,2.74]
[1755596221500,7.43152771,181.93,181.86,2.74]
[1755596221702,3.1,181.93,181.86,2.74]
[1755596222600,3.1,181.96,181.86,2.74]
[1755596222805,3.1,181.94,181.86,2.74]
[1755596223007,4.33060139,181.93,181.86,2.74]
[1755596223208,3.1,181.94,181.86,2.74]
[1755596232713,3.1,181.94,181.86,6.35672821]
[1755596233010,3.1,181.94,181.87,2.74]
[1755596233200,3.1,181.97,181.87,2.74]
[1755596233805,3.1,181.97,181.88,5.4956]
[1755596234006,3.1,181.97,181.89,2.74]
[1755596234818,3.1,181.97,181.86,6.35672821]
[1755596235307,4.3208374,181.96,181.86,6.35672821]
[1755596235508,3.1,181.95,181.86,6.35672821]
[1755596236008,3.1,181.95,181.88,2.74]
[1755596237409,3.1,181.95,181.88,8.2357]
[1755596239316,3.1,181.95,181.88,2.74]
[1755596245417,3.1,181.98,181.89,2.74]
[1755596245725,4.35046001,181.97,181.9,2.74]
[1755596246020,3.1,181.98,181.9,2.74]
[1755596246422,3.1,181.98,181.9,8.2352]
[1755596247617,3.1,181.98,181.9,2.74]
[1755596248221,3.1,181.98,181.9,8.2352]
[1755596248426,3.1,181.98,181.91,2.74]
[1755596249223,3.1,181.98,181.91,8.2348]
[1755596249420,3.1,181.98,181.91,7.28335459]
[1755596249627,3.1,181.98,181.92,11.85122821]
[1755596249825,3.1,182.03,181.93,2.74]
[1755596250016,4.35272129,182.02,181.95,5.4937]
[1755596250219,3.1,182.03,181.96,2.74]
[1755596253731,369.28,182.08,181.98,3.61672821]
[1755596253928,7.45179684,182.07,181.99,2.74]
[1755596254122,3.1,182.07,181.99,2.74]
[1755596254632,4.34971256,182.06,181.98,3.61672821]
[1755596254827,3.1,182.05,181.96,10.9000828]
[1755596255224,3.1,182.05,181.96,7.28335459]
[1755596255422,4.34906635,182.04,181.96,2.74]
[1755596255622,3.1,182.02,181.96,2.74]
[1755596257122,3.1,182.02,181.96,8.2334]
[1755596257322,369.28,182.08,181.98,2.74]
[1755596257323,3.1,182.07,181.98,2.74]
[1755596257830,3.1,182.07,182.0,2.74]
[1755596260532,3.1,182.07,182.0,8.2322]
[1755596261229,3.1,182.07,182.0,2.74]
[1755596264549,3.1,182.12,182.0,2.74]
[1755596264751,3.1,182.1,182.01,5.4918]
[1755596264947,3.1,182.1,182.02,2.74]
[1755596266247,3.1,182.1,182.03,2.74]
[1755596272653,3.1,182.1,182.03,6.35672821]
[1755596273545,3.1,182.1,182.05,2.74]
[1755596273750,3.1,182.16,182.05,2.74]
[1755596274149,3.1,182.16,182.05,8.2306]
[1755596275655,3.1,182.16,182.06,2.74]
[1755596280456,4.33994364,182.15,182.06,2.74]
[1755596280662,3.1,182.14,182.06,2.74]
[1755596282664,4.34115065,182.13,182.0,2.74]
[1755596282954,3.1,182.11,181.99,3.61672821]
[1755596283164,3.1,182.11,182.0,2.74]
[1755596283560,3.1,182.11,182.02,2.74]
[1755596284158,3.1,182.11,182.02,8.2316]
[1755596284365,3.1,182.11,182.02,2.74]
[1755596284962,3.1,182.1,181.99,6.35672821]
[1755596285963,3.1,182.1,181.99,11.84922821]
[1755596287064,3.1,182.07,181.99,2.74]
[1755596288166,3.1,182.07,182.0,5.492]
[1755596288362,3.1,182.07,182.01,2.74]
[1755596288762,3.1,182.07,182.01,8.2317]
[1755596289866,3.1,182.11,182.02,2.74]
[1755596290066,4.35288033,182.1,182.02,2.74]
[1755596290266,4.35288033,182.09,182.02,2.74]
[1755596290464,3.1,182.11,182.02,2.74]
[1755596290767,3.1,182.09,181.99,2.74]
[1755596291263,4.35705493,182.08,181.99,2.74]
[1755596291470,3.1,182.07,181.99,2.74]
[1755596293070,3.1,182.07,181.99,8.2325]
[1755596293771,3.1,182.07,181.99,2.74]
[1755596294765,4.36446877,182.06,181.99,2.74]
[1755596294966,3.1,182.07,181.99,2.74]
[1755596295167,4.36446876,182.06,181.99,2.74]
[1755596295472,3.1,182.07,181.99,2.74]
[1755596297468,4.36712333,182.06,181.99,2.74]
[1755596297670,3.1,182.05,181.99,2.74]
[1755596300670,4.36846025,182.04,181.96,4.54335459]
[1755596300871,3.1,182.03,181.95,7.28335459]
[1755596302076,3.1,182.03,181.95,2.74]
[1755596302473,4.35189339,182.02,181.95,2.74]
[1755596302775,7.25200601,182.01,181.95,2.74]
[1755596302974,2.9,182.01,181.95,2.74]
[1755596309480,2.9,182.01,181.92,2.74]
[1755596309780,2.9,182.01,181.9,141.18]
[1755596310083,2.9,182.01,181.91,2.74]
[1755596313582,3.61672821,181.99,181.91,2.74]
[1755596313782,2.9,181.98,181.91,2.74]
[1755596319288,2.9,181.98,181.88,3.61672821]
[1755596319494,2.9,181.98,181.87,2.74]
[1755596321907,2.9,181.95,181.87,2.74]
[1755596328712,2.9,181.95,181.83,149.99402821]
[1755596328713,2.9,181.95,181.84,2.74]
[1755596329011,4.33628993,181.94,181.84,2.74]
[1755596329211,2.9,181.93,181.84,2.74]
[1755596329408,2.9,181.92,181.83,2.74]
[1755596330401,3.61672821,181.9,181.83,2.74]
[1755596330608,2.9,181.89,181.83,2.74]
[1755596331110,2.9,181.89,181.8,2.74]
[1755596336606,3.61672821,181.87,181.76,8.2494]
[1755596336811,3.0,181.86,181.77,2.75]
[1755596337214,3.0,181.86,181.77,5.4991]
[1755596337510,3.0,181.86,181.78,2.75]
[1755596342815,3.0,181.82,181.78,2.75]
[1755596343014,3.0,181.81,181.75,2.75]
[1755596344412,3.0,181.81,181.71,0.20542503]
[1755596344715,3.0,181.81,181.72,2.75]
[1755596347921,3.0,181.8,181.72,2.75]
[1755596351811,3.0,181.83,181.72,6.36672821]
[1755596352018,3.0,181.83,181.73,2.75]
[1755596355223,3.0,181.83,181.74,2.75]
[1755596355425,3.0,181.86,181.75,3.61672821]
[1755596355629,3.0,181.86,181.76,2.75]
[1755596356225,3.0,181.84,181.76,2.75]
[1755596356425,6.61672821,181.84,181.76,2.75]
[1755596357226,3.0,181.83,181.76,2.75]
[1755596357429,3.0,181.83,181.74,2.75]
[1755596364528,3.61672821,181.84,181.74,2.75]
[1755596364833,7.55946055,181.83,181.74,2.75]
[1755596365033,3.14,181.83,181.74,2.75]
[1755596369135,4.42736862,181.82,181.74,2.75]
[1755596369437,3.14,181.81,181.74,2.75]
[1755596371435,3.14,181.81,181.72,2.75]
[1755596371633,3.61672821,181.81,181.72,2.75]
[1755596371933,3.14,181.85,181.73,2.75]
[1755596372133,4.43158539,181.84,181.73,2.75]
[1755596372436,7.57158539,181.83,181.75,2.75]
[1755596372639,7.57158539,181.82,181.75,2.75]
[1755596372935,3.14,181.82,181.75,2.75]
[1755596374137,4.43881249,181.81,181.75,2.75]
[1755596374333,3.14,181.82,181.75,2.75]
[1755596374535,3.14,181.8,181.75,2.75]
[1755596374832,3.14,181.79,181.75,2.75]
[1755596375429,3.61672821,181.83,181.75,2.75]
[1755596375638,3.14,181.78,181.75,2.75]
[1755596378940,5.4640067,181.81,181.73,5.0740067]
[1755596379140,7.58418554,181.8,181.73,5.0740067]
[1755596379337,4.44418554,181.79,181.73,9.60164246]
[1755596379637,3.14,181.78,181.73,9.60164246]
[1755596379834,3.14,181.76,181.73,9.60164246]
[1755596380030,3.14,181.76,181.73,2.75]
[1755596380238,3.14,181.76,181.72,4.52763576]
[1755596380442,2.3240067,181.79,181.74,2.75]